[Event "19th IPCA WCC 2019"]
[Site "Ruzomberok"]
[Date "2019.06.30"]
[Round "3.11"]
[White "Lipilin, Ilia"]
[Black "Belak, Stefan"]
[Result "1/2-1/2"]
[ECO "A06"]
[WhiteElo "2084"]
[BlackElo "1851"]
[Annotator "NA"]
[PlyCount "86"]
[EventDate "2019.06.28"]
[EventType "swiss"]
[EventCountry "SVK"]
[SourceTitle "playchess.com"]
[Source "ChessBase"]
[SourceQuality "1"]
[TimeControl "5400+30"]

1. Nf3 {[%emt 0:00:00]} d5 {[%emt 0:00:00]} 2. c4 {[%emt 0:00:00]} c6 {[%emt 0:00:00]} 3. d4 {[%emt 0:00:00]} e6 {[%emt 0:00:06]} 4. e3 {[%emt 0:00:11]} f5 {[%emt 0:00:28]} 5. Bd3 {[%emt 0:00:16]} Nf6 {[%emt 0:00:12]} 6. Nc3 {[%emt 0:00:11]} Be7 {[%emt 0:00:51]} 7. Qc2 {[%emt 0:00:43]} a6 {[%emt 0:01:42]} 8. cxd5 {[%emt 0:00:15]} cxd5 {[%emt 0:00:18]} 9. Bd2 {[%emt 0:00:30]} Nc6 {[%emt 0:00:05]} 10. a3 {[%emt 0:00:53]} Bd7 {[%emt 0:01:16]} 11. O-O {[%emt 0:01:44]} O-O {[%emt 0:00:07]} 12. Rfc1 {[%emt 0:09:29]} Rc8 {[%emt 0:00:24]} 13. Qd1 {[%emt 0:00:11]} Bd6 {[%emt 0:01:04]} 14. Na4 {[%emt 0:05:21]} Be8 {[%emt 0:04:09]} 15. Qb3 {[%emt 0:02:20]} Qe7 {[%emt 0:04:28]} 16. Nc5 {[%emt 0:01:21]} Bh5 {[%emt 0:05:24]} 17. Nxb7 {[%emt 0:05:09]} Rb8 {[%emt 0:15:33]} 18. Rxc6 {[%emt 0:00:16]} Rxb7 {[%emt 0:00:12]} 19. Qc2 {[%emt 0:00:55]} Ne4 {[%emt 0:09:36]} 20. Ne5 {[%emt 0:15:00]} Rfb8 {[%emt 0:10:33]} 21. b4 {[%emt 0:06:02]} Be8 {[%emt 0:01:48]} 22. Rxa6 {[%emt 0:03:15]} Rc7 {[%emt 0:00:28]} 23. Qb2 {[%emt 0:00:30]} Rbc8 {[%emt 0:05:55]} 24. Be1 {[%emt 0:04:29]} g5 {[%emt 0:05:40]} 25. f3 {[%emt 0:06:14]} Nf6 {[%emt 0:03:51]} 26. Bd2 {[%emt 0:01:43]} g4 {[%emt 0:05:14]} 27. f4 {[%emt 0:06:23]} Bxe5 {[%emt 0:04:06]} 28. fxe5 {[%emt 0:01:29]} Ne4 {[%emt 0:00:54]} 29. Ra5 {[%emt 0:00:21]} g3 {[%emt 0:04:24]} 30. Bxe4 {[%emt 0:07:52]} gxh2+ {[%emt 0:03:27]} 31. Kh1 {[%emt 0:00:12]} fxe4 {[%emt 0:00:52]} 32. Rc5 {[%emt 0:00:08]} Qg5 {[%emt 0:04:25]} 33. Rf1 {[%emt 0:02:54]} Rg7 {[%emt 0:00:50]} 34. Bc1 {[%emt 0:00:33]} Rcc7 {[%emt 0:01:34]} 35. Rxc7 {[%emt 0:05:30]} Rxc7 {[%emt 0:00:05]} 36. Qf2 {[%emt 0:00:36]} Rf7 {[%emt 0:00:16]} 37. Qe2 {[%emt 0:00:11]} Rg7 {[%emt 0:00:18]} 38. Rf4 {[%emt 0:00:37]} Bh5 {[%emt 0:01:03]} 39. Qc2 {[%emt 0:00:41]} h6 {[%emt 0:00:53]} 40. Rf2 {[%emt 0:02:07]} Bf3 {[%emt 0:00:51]} 41. Kxh2 {[%emt 0:06:25]} Qh4+ {[%emt 0:00:07]} 42. Kg1 {[%emt 0:00:17]} Bxg2 {[%emt 0:00:30]} 43. Rxg2 {[%emt 0:00:13]} Qe1+ {[%emt 0:00:11]} 1/2-1/2

[Event "19th IPCA WCC 2019"]
[Site "Ruzomberok"]
[Date "2019.06.30"]
[Round "3.12"]
[White "Sovetov, Oleksandr"]
[Black "Roehrig, Uwe"]
[Result "1-0"]
[ECO "E91"]
[WhiteElo "2009"]
[BlackElo "1802"]
[Annotator "NA"]
[PlyCount "47"]
[EventDate "2019.06.28"]
[EventType "swiss"]
[EventCountry "SVK"]
[SourceTitle "playchess.com"]
[Source "ChessBase"]
[SourceQuality "1"]
[TimeControl "5400+30"]

1. d4 {[%emt 0:00:00]} Nf6 {[%emt 0:00:00]} 2. c4 {[%emt 0:00:00]} g6 {[%emt 0:00:17]} 3. Nc3 {[%emt 0:00:15]} Bg7 {[%emt 0:00:25]} 4. e4 {[%emt 0:00:26]} d6 {[%emt 0:00:25]} 5. Be2 {[%emt 0:00:44]} O-O {[%emt 0:00:48]} 6. Nf3 {[%emt 0:01:02]} Nbd7 {[%emt 0:02:29]} 7. h3 {[%emt 0:00:14]} c5 {[%emt 0:01:41]} 8. d5 {[%emt 0:00:50]} Ne8 {[%emt 0:02:17]} 9. O-O {[%emt 0:03:44]} h6 {[%emt 0:02:13]} 10. Be3 {[%emt 0:01:00]} Kh7 {[%emt 0:00:31]} 11. Qd2 {[%emt 0:00:39]} a6 {[%emt 0:02:27]} 12. Bd3 {[%emt 0:07:00]} Rb8 {[%emt 0:06:47]} 13. Rae1 {[%emt 0:00:52]} Qa5 {[%emt 0:02:17]} 14. Bf4 {[%emt 0:02:03]} Ne5 {[%emt 0:10:53]} 15. Nxe5 {[%emt 0:00:55]} dxe5 {[%emt 0:00:25]} 16. Be3 {[%emt 0:00:53]} Nd6 {[%emt 0:02:19]} 17. f4 {[%emt 0:01:18]} f5 {[%emt 0:02:20]} 18. fxe5 {[%emt 0:01:10]} Bxe5 {[%emt 0:00:49]} 19. Bxh6 {[%emt 0:00:39]} Bg7 {[%emt 0:04:05]} 20. Bxg7 {[%emt 0:00:44]} Kxg7 {[%emt 0:00:15]} 21. exf5 {[%emt 0:00:17]} Bxf5 {[%emt 0:07:28]} 22. Rxe7+ {[%emt 0:00:37]} Rf7 {[%emt 0:00:16]} 23. Rxf7+ {[%emt 0:00:26]} Kxf7 {[%emt 0:00:09]} 24. g4 {[%emt 0:00:45]} 1-0

[Event "19th IPCA WCC 2019"]
[Site "Ruzomberok"]
[Date "2019.06.30"]
[Round "3.13"]
[White "Zavarsky, Juraj"]
[Black "Korber, Antonin"]
[Result "1-0"]
[ECO "C00"]
[WhiteElo "2000"]
[BlackElo "1759"]
[Annotator "NA"]
[PlyCount "69"]
[EventDate "2019.06.28"]
[EventType "swiss"]
[EventCountry "SVK"]
[SourceTitle "playchess.com"]
[Source "ChessBase"]
[SourceQuality "1"]
[TimeControl "5400+30"]

1. e4 {[%emt 0:00:00]} e6 {[%emt 0:00:00]} 2. d4 {[%emt 0:00:00]} d6 {[%emt 0:00:00]} 3. Nf3 {[%emt 0:02:46]} b6 {[%emt 0:00:00]} 4. Bd3 {[%emt 0:01:06]} Bb7 {[%emt 0:00:13]} 5. O-O {[%emt 0:00:24]} Nd7 {[%emt 0:00:36]} 6. Qe2 {[%emt 0:02:45]} g6 {[%emt 0:00:34]} 7. Bg5 {[%emt 0:01:10]} Be7 {[%emt 0:02:44]} 8. Bxe7 {[%emt 0:01:23]} Qxe7 {[%emt 0:00:16]} 9. Nc3 {[%emt 0:05:50]} a6 {[%emt 0:04:57]} 10. a4 {[%emt 0:09:45]} c5 {[%emt 0:00:40]} 11. Rfe1 {[%emt 0:06:18]} Ngf6 {[%emt 0:02:28]} 12. e5 {[%emt 0:03:51]} Nh5 {[%emt 0:01:22]} 13. exd6 {[%emt 0:04:01]} Qxd6 {[%emt 0:00:52]} 14. Be4 {[%emt 0:01:54]} Nf4 {[%emt 0:11:00]} 15. Qe3 {[%emt 0:00:54]} cxd4 {[%emt 0:02:04]} 16. Nxd4 {[%emt 0:01:17]} Bxe4 {[%emt 0:02:03]} 17. Nxe4 {[%emt 0:03:51]} Qc7 {[%emt 0:01:36]} 18. Qa3 {[%emt 0:07:57]} Nc5 {[%emt 0:19:44]} 19. Nf6+ {[%emt 0:00:24]} Ke7 {[%emt 0:01:46]} 20. Ng4 {[%emt 0:05:53]} Rhd8 {[%emt 0:24:42]} 21. Rad1 {[%emt 0:02:01]} h5 {[%emt 0:03:16]} 22. Ne5 {[%emt 0:05:08]} Ke8 {[%emt 0:05:28]} 23. Qg3 {[%emt 0:03:22]} Nd5 {[%emt 0:05:51]} 24. b3 {[%emt 0:06:15]} Rd6 {[%emt 0:00:30]} 25. Nc4 {[%emt 0:06:58]} Rd7 {[%emt 0:01:27]} 26. Qg5 {[%emt 0:00:30]} Rad8 {[%emt 0:00:44]} 27. Ne5 {[%emt 0:02:13]} Rd6 {[%emt 0:01:47]} 28. Ndf3 {[%emt 0:06:53]} Nc3 {[%emt 0:00:59]} 29. Rxd6 {[%emt 0:00:22]} Rxd6 {[%emt 0:00:16]} 30. Qf6 {[%emt 0:00:54]} N5e4 {[%emt 0:03:22]} 31. Qh8+ {[%emt 0:00:19]} Ke7 {[%emt 0:00:10]} 32. Qg8 {[%emt 0:00:19]} Rd1 {[%emt 0:00:23]} 33. Qxf7+ {[%emt 0:02:11]} Kd6 {[%emt 0:00:56]} 34. Rxd1+ {[%emt 0:00:14]} Nxd1 {[%emt 0:00:03]} 35. Nc4+ {[%emt 0:00:21]} 1-0

[Event "19th IPCA WCC 2019"]
[Site "Ruzomberok"]
[Date "2019.06.30"]
[Round "3.14"]
[White "Felegyi, Karoly"]
[Black "Kozicz, Andrzej"]
[Result "0-1"]
[ECO "B95"]
[WhiteElo "1674"]
[BlackElo "1979"]
[Annotator "NA"]
[PlyCount "138"]
[EventDate "2019.06.28"]
[EventType "swiss"]
[EventCountry "SVK"]
[SourceTitle "playchess.com"]
[Source "ChessBase"]
[SourceQuality "1"]
[TimeControl "5400+30"]

1. e4 {[%emt 0:00:00]} c5 {[%emt 0:00:00]} 2. Nf3 {[%emt 0:00:01]} a6 {[%emt 0:00:00]} 3. d4 {[%emt 0:01:10]} cxd4 {[%emt 0:00:06]} 4. Nxd4 {[%emt 0:01:54]} Nf6 {[%emt 0:00:09]} 5. Nc3 {[%emt 0:00:22]} d6 {[%emt 0:00:10]} 6. Bg5 {[%emt 0:01:59]} e6 {[%emt 0:00:05]} 7. Nf3 {[%emt 0:02:30]} Be7 {[%emt 0:00:17]} 8. e5 {[%emt 0:01:23]} dxe5 {[%emt 0:00:31]} 9. Qxd8+ {[%emt 0:00:24]} Bxd8 {[%emt 0:00:19]} 10. Nxe5 {[%emt 0:01:43]} Nbd7 {[%emt 0:00:53]} 11. Nxd7 {[%emt 0:01:33]} Bxd7 {[%emt 0:00:09]} 12. Be2 {[%emt 0:04:41]} Bc6 {[%emt 0:00:08]} 13. O-O {[%emt 0:00:22]} h6 {[%emt 0:00:36]} 14. Be3 {[%emt 0:03:45]} O-O {[%emt 0:00:13]} 15. Rad1 {[%emt 0:00:18]} Bc7 {[%emt 0:00:36]} 16. Bc5 {[%emt 0:03:38]} Rfe8 {[%emt 0:00:13]} 17. Bd6 {[%emt 0:00:31]} Ba5 {[%emt 0:00:43]} 18. b4 {[%emt 0:00:28]} Bb6 {[%emt 0:00:12]} 19. a4 {[%emt 0:01:40]} Rac8 {[%emt 0:00:35]} 20. Be5 {[%emt 0:01:14]} Ne4 {[%emt 0:02:57]} 21. Nxe4 {[%emt 0:05:19]} Bxe4 {[%emt 0:00:04]} 22. c4 {[%emt 0:00:23]} f6 {[%emt 0:03:55]} 23. Bd4 {[%emt 0:03:49]} Bc7 {[%emt 0:00:49]} 24. Bd3 {[%emt 0:02:27]} Bxd3 {[%emt 0:00:58]} 25. Rxd3 {[%emt 0:00:07]} e5 {[%emt 0:03:30]} 26. Be3 {[%emt 0:00:32]} Kf7 {[%emt 0:04:15]} 27. Rfd1 {[%emt 0:00:35]} Red8 {[%emt 0:00:08]} 28. Rd7+ {[%emt 0:02:36]} Ke6 {[%emt 0:00:08]} 29. Rxd8 {[%emt 0:02:13]} Bxd8 {[%emt 0:03:46]} 30. c5 {[%emt 0:00:28]} Be7 {[%emt 0:00:21]} 31. g3 {[%emt 0:01:28]} a5 {[%emt 0:01:08]} 32. bxa5 {[%emt 0:02:21]} Ra8 {[%emt 0:03:38]} 33. Rb1 {[%emt 0:01:58]} Rxa5 {[%emt 0:00:02]} 34. Rb6+ {[%emt 0:00:57]} Kf7 {[%emt 0:04:37]} 35. Rxb7 {[%emt 0:02:14]} Rxa4 {[%emt 0:00:02]} 36. c6 {[%emt 0:00:19]} Rc4 {[%emt 0:00:02]} 37. c7 {[%emt 0:03:24]} Ke6 {[%emt 0:03:47]} 38. Bb6 {[%emt 0:01:17]} Bd6 {[%emt 0:03:32]} 39. Ra7 {[%emt 0:07:49]} g5 {[%emt 0:01:17]} 40. c8=Q+ Rxc8 {[%emt 0:00:12]} 41. Rh7 {[%emt 0:06:10]} Bf8 {[%emt 0:00:31]} 42. Kg2 f5 43. Ba5 {[%emt 0:04:25]} Rc2 {[%emt 0:02:12]} 44. Bb6 {[%emt 0:01:54]} f4 {[%emt 0:04:27]} 45. gxf4 {[%emt 0:02:32]} gxf4 {[%emt 0:03:30]} 46. Kf3 {[%emt 0:00:15]} Rc6 {[%emt 0:00:28]} 47. Ba7 {[%emt 0:00:37]} Kf6 {[%emt 0:03:46]} 48. Rb7 {[%emt 0:00:39]} h5 {[%emt 0:01:21]} 49. Rb8 {[%emt 0:02:08]} Bh6 {[%emt 0:00:33]} 50. h4 {[%emt 0:00:30]} Kf5 {[%emt 0:00:05]} 51. Rb5 {[%emt 0:03:43]} Rc3+ {[%emt 0:01:01]} 52. Kg2 {[%emt 0:00:10]} f3+ {[%emt 0:00:59]} 53. Kh3 {[%emt 0:03:17]} Bf4 {[%emt 0:00:14]} 54. Rb1 {[%emt 0:02:21]} Rc1 {[%emt 0:00:20]} 55. Rxc1 {[%emt 0:00:09]} Bxc1 {[%emt 0:00:03]} 56. Kg3 {[%emt 0:00:37]} Ke4 {[%emt 0:00:03]} 57. Kh2 {[%emt 0:01:40]} Bf4+ {[%emt 0:00:19]} 58. Kg1 {[%emt 0:00:13]} Kf5 {[%emt 0:00:28]} 59. Bc5 {[%emt 0:03:50]} e4 {[%emt 0:00:04]} 60. Kf1 {[%emt 0:00:50]} Be5 {[%emt 0:00:13]} 61. Be3 {[%emt 0:00:33]} Bf6 {[%emt 0:00:30]} 62. Kg1 {[%emt 0:02:10]} Bxh4 {[%emt 0:00:04]} 63. Kh2 {[%emt 0:00:17]} Bg5 {[%emt 0:00:13]} 64. Bd4 {[%emt 0:00:34]} e3 {[%emt 0:03:17]} 65. fxe3 {[%emt 0:03:00]} Ke4 {[%emt 0:00:03]} 66. Bb6 {[%emt 0:02:08]} Bxe3 {[%emt 0:00:05]} 67. Bc7 {[%emt 0:01:15]} Kd3 {[%emt 0:00:07]} 68. Bg3 {[%emt 0:01:06]} Bf4 {[%emt 0:00:40]} 69. Bxf4 {[%emt 0:05:54]} f2 {[%emt 0:06:12]} 0-1

[Event "19th IPCA WCC 2019"]
[Site "Ruzomberok"]
[Date "2019.06.30"]
[Round "3.15"]
[White "Konkolova, Nikola"]
[Black "Jennitha, Anto K."]
[Result "0-1"]
[ECO "D00"]
[WhiteElo "1518"]
[BlackElo "1972"]
[Annotator "NA"]
[PlyCount "68"]
[EventDate "2019.06.28"]
[EventType "swiss"]
[EventCountry "SVK"]
[SourceTitle "playchess.com"]
[Source "ChessBase"]
[SourceQuality "1"]
[TimeControl "5400+30"]

1. d4 {[%emt 0:00:00]} d5 {[%emt 0:00:00]} 2. Bf4 {[%emt 0:00:10]} Nf6 {[%emt 0:00:00]} 3. e3 {[%emt 0:00:40]} e6 {[%emt 0:00:00]} 4. Nd2 {[%emt 0:01:11]} c5 {[%emt 0:01:17]} 5. c3 {[%emt 0:00:31]} Nc6 {[%emt 0:00:38]} 6. Bd3 {[%emt 0:01:00]} h6 {[%emt 0:07:09]} 7. Ngf3 {[%emt 0:03:32]} Be7 {[%emt 0:03:21]} 8. a3 {[%emt 0:06:08]} a6 {[%emt 0:08:30]} 9. h3 {[%emt 0:05:27]} Nd7 {[%emt 0:18:12]} 10. b4 {[%emt 0:06:19]} c4 {[%emt 0:03:18]} 11. Bb1 {[%emt 0:00:54]} f5 {[%emt 0:03:13]} 12. g4 {[%emt 0:04:11]} g5 {[%emt 0:07:57]} 13. Bg3 {[%emt 0:03:13]} Nf6 {[%emt 0:02:26]} 14. gxf5 {[%emt 0:01:08]} exf5 {[%emt 0:00:12]} 15. Ne5 {[%emt 0:05:05]} Be6 {[%emt 0:03:42]} 16. Nxc6 {[%emt 0:02:17]} bxc6 {[%emt 0:00:04]} 17. Be5 {[%emt 0:02:39]} O-O {[%emt 0:12:13]} 18. f4 {[%emt 0:04:27]} Ne4 {[%emt 0:02:53]} 19. Nxe4 {[%emt 0:05:30]} fxe4 {[%emt 0:00:39]} 20. Qh5 {[%emt 0:01:12]} Kh7 {[%emt 0:00:30]} 21. Rg1 {[%emt 0:14:23]} Qe8 {[%emt 0:02:05]} 22. Qxe8 {[%emt 0:03:59]} Rfxe8 {[%emt 0:00:05]} 23. h4 {[%emt 0:02:14]} g4 {[%emt 0:00:56]} 24. Rh1 {[%emt 0:00:39]} Rg8 {[%emt 0:01:39]} 25. Kf2 {[%emt 0:01:12]} g3+ {[%emt 0:01:03]} 26. Kg1 {[%emt 0:01:16]} h5 {[%emt 0:08:35]} 27. Bc2 {[%emt 0:04:56]} Bg4 {[%emt 0:00:10]} 28. Bd1 {[%emt 0:01:34]} a5 {[%emt 0:05:48]} 29. Kg2 {[%emt 0:08:28]} Bxd1 {[%emt 0:01:47]} 30. Raxd1 {[%emt 0:00:18]} axb4 {[%emt 0:00:07]} 31. axb4 {[%emt 0:00:54]} Ra2+ {[%emt 0:00:40]} 32. Kh3 {[%emt 0:00:41]} Rf2 {[%emt 0:02:12]} 33. Rde1 {[%emt 0:06:07]} Rg4 {[%emt 0:00:20]} 34. Rhg1 {[%emt 0:00:57]} Rh2# 0-1

[Event "19th IPCA WCC 2019"]
[Site "Ruzomberok"]
[Date "2019.06.30"]
[Round "3.16"]
[White "Tsapalin, Sergey"]
[Black "Angappan A"]
[Result "1-0"]
[ECO "D35"]
[WhiteElo "1935"]
[BlackElo "1267"]
[Annotator "NA"]
[PlyCount "119"]
[EventDate "2019.06.28"]
[EventType "swiss"]
[EventCountry "SVK"]
[SourceTitle "playchess.com"]
[Source "ChessBase"]
[SourceQuality "1"]
[TimeControl "5400+30"]

1. d4 {[%emt 0:00:00]} d5 {[%emt 0:00:00]} 2. c4 {[%emt 0:00:00]} e6 {[%emt 0:00:00]} 3. Nc3 {[%emt 0:00:00]} Nf6 {[%emt 0:00:04]} 4. cxd5 {[%emt 0:00:04]} exd5 5. Bg5 {[%emt 0:00:13]} Nbd7 {[%emt 0:00:23]} 6. e3 {[%emt 0:00:17]} Be7 {[%emt 0:00:14]} 7. Bd3 {[%emt 0:00:27]} O-O {[%emt 0:00:18]} 8. Nge2 {[%emt 0:00:08]} b6 {[%emt 0:00:28]} 9. O-O {[%emt 0:00:35]} Bb7 {[%emt 0:00:09]} 10. Qc2 {[%emt 0:00:17]} c5 {[%emt 0:01:42]} 11. Ng3 {[%emt 0:02:52]} Rc8 {[%emt 0:01:25]} 12. Nf5 {[%emt 0:01:18]} Re8 {[%emt 0:02:06]} 13. Qa4 {[%emt 0:11:40]} c4 {[%emt 0:05:42]} 14. Bb1 {[%emt 0:00:34]} Bc6 {[%emt 0:01:54]} 15. Qc2 {[%emt 0:00:19]} Bf8 {[%emt 0:01:23]} 16. h4 {[%emt 0:07:20]} h6 {[%emt 0:01:05]} 17. Bf4 {[%emt 0:00:29]} Ne4 {[%emt 0:02:16]} 18. f3 {[%emt 0:00:13]} g6 {[%emt 0:06:57]} 19. fxe4 {[%emt 0:02:55]} dxe4 {[%emt 0:05:04]} 20. Nxh6+ {[%emt 0:00:38]} Bxh6 {[%emt 0:00:58]} 21. Bxh6 {[%emt 0:00:03]} Qxh4 {[%emt 0:00:33]} 22. Bf4 {[%emt 0:00:09]} Kg7 {[%emt 0:01:07]} 23. Qf2 {[%emt 0:00:48]} Qh5 {[%emt 0:05:30]} 24. Be5+ {[%emt 0:00:58]} Nxe5 25. dxe5 Re7 {[%emt 0:03:46]} 26. Qf6+ {[%emt 0:01:03]} Kf8 {[%emt 0:00:31]} 27. Bxe4 {[%emt 0:00:28]} Bxe4 28. Nxe4 Qxe5 {[%emt 0:01:59]} 29. Qxe5 {[%emt 0:16:08]} Rxe5 {[%emt 0:00:12]} 30. Rxf7+ {[%emt 0:00:10]} Kxf7 31. Nd6+ Kf6 {[%emt 0:02:09]} 32. Nxc8 {[%emt 0:00:32]} Rxe3 {[%emt 0:00:13]} 33. Nxa7 {[%emt 0:00:24]} Re2 {[%emt 0:00:14]} 34. Rf1+ {[%emt 0:00:29]} Ke6 {[%emt 0:00:37]} 35. Rf2 {[%emt 0:00:07]} Re4 {[%emt 0:04:29]} 36. Nb5 {[%emt 0:00:48]} Ke5 {[%emt 0:04:41]} 37. Rc2 {[%emt 0:00:41]} g5 {[%emt 0:03:15]} 38. Kf2 {[%emt 0:01:13]} Rf4+ {[%emt 0:03:00]} 39. Ke3 {[%emt 0:00:05]} Re4+ {[%emt 0:00:23]} 40. Kd2 {[%emt 0:00:07]} Rg4 {[%emt 0:03:14]} 41. Kc3 {[%emt 0:01:03]} Kd5 {[%emt 0:00:26]} 42. Kb4 {[%emt 0:00:16]} Rf4 {[%emt 0:02:30]} 43. Nc3+ {[%emt 0:00:32]} Kd4 {[%emt 0:01:09]} 44. Ne2+ {[%emt 0:01:13]} Kd3 {[%emt 0:00:32]} 45. Nxf4+ {[%emt 0:00:17]} Kxc2 {[%emt 0:00:10]} 46. Nd5 {[%emt 0:00:21]} Kxb2 {[%emt 0:00:26]} 47. a4 {[%emt 0:00:26]} Kc2 {[%emt 0:01:54]} 48. Kxc4 {[%emt 0:00:10]} Kd2 {[%emt 0:00:26]} 49. Nxb6 {[%emt 0:00:06]} g4 {[%emt 0:00:10]} 50. Nd5 {[%emt 0:00:34]} Ke2 {[%emt 0:00:21]} 51. Nf6 {[%emt 0:00:13]} g3 {[%emt 0:00:09]} 52. Ne4 {[%emt 0:00:17]} Ke3 {[%emt 0:00:15]} 53. Nxg3 {[%emt 0:00:11]} Kf2 {[%emt 0:00:10]} 54. a5 {[%emt 0:00:09]} Kxg2 {[%emt 0:00:06]} 55. a6 {[%emt 0:00:10]} Kh2 {[%emt 0:00:45]} 56. a7 {[%emt 0:00:10]} Kg1 {[%emt 0:00:27]} 57. a8=Q Kh2 58. Qf3 {[%emt 0:01:23]} Kg1 {[%emt 0:00:53]} 59. Ne2+ {[%emt 0:00:10]} Kh2 {[%emt 0:00:13]} 60. Qg3+ {[%emt 0:00:11]} 1-0

[Event "19th IPCA WCC 2019"]
[Site "Ruzomberok"]
[Date "2019.06.30"]
[Round "3.17"]
[White "Kaydanovich, Marina"]
[Black "Pilimon, Zbigniew"]
[Result "1-0"]
[ECO "A46"]
[WhiteElo "1760"]
[BlackElo "1670"]
[Annotator "NA"]
[PlyCount "93"]
[EventDate "2019.06.28"]
[EventType "swiss"]
[EventCountry "SVK"]
[SourceTitle "playchess.com"]
[Source "ChessBase"]
[SourceQuality "1"]
[TimeControl "5400+30"]

1. d4 {[%emt 0:00:00]} Nf6 {[%emt 0:00:00]} 2. Nf3 {[%emt 0:00:00]} e6 {[%emt 0:00:04]} 3. c4 {[%emt 0:00:05]} d5 {[%emt 0:01:00]} 4. e3 {[%emt 0:00:20]} Be7 {[%emt 0:01:21]} 5. Nbd2 {[%emt 0:00:25]} b6 {[%emt 0:00:36]} 6. Bd3 {[%emt 0:00:24]} Bb7 {[%emt 0:00:16]} 7. O-O {[%emt 0:00:14]} Nbd7 {[%emt 0:00:46]} 8. b3 {[%emt 0:01:50]} Ne4 {[%emt 0:01:28]} 9. Bb2 {[%emt 0:00:15]} Ndf6 {[%emt 0:00:21]} 10. Ne5 {[%emt 0:01:46]} O-O {[%emt 0:01:51]} 11. f3 {[%emt 0:02:43]} Nxd2 {[%emt 0:02:04]} 12. Qxd2 {[%emt 0:00:02]} Nd7 {[%emt 0:06:24]} 13. Qc2 {[%emt 0:09:09]} h6 {[%emt 0:01:01]} 14. cxd5 {[%emt 0:04:04]} Nxe5 {[%emt 0:00:34]} 15. dxe5 {[%emt 0:00:09]} Bxd5 {[%emt 0:00:50]} 16. Rad1 {[%emt 0:02:18]} Qc8 {[%emt 0:03:52]} 17. Qe2 {[%emt 0:03:08]} c5 {[%emt 0:03:00]} 18. f4 {[%emt 0:03:46]} Qb7 {[%emt 0:08:03]} 19. e4 {[%emt 0:00:58]} Bc6 {[%emt 0:00:19]} 20. f5 {[%emt 0:03:32]} exf5 {[%emt 0:00:47]} 21. exf5 {[%emt 0:00:26]} f6 {[%emt 0:01:39]} 22. Bc4+ {[%emt 0:10:33]} Kh8 {[%emt 0:10:32]} 23. e6 {[%emt 0:05:51]} b5 {[%emt 0:03:11]} 24. Bd3 {[%emt 0:00:13]} Rad8 {[%emt 0:02:15]} 25. Bc2 {[%emt 0:00:06]} Bd5 {[%emt 0:05:38]} 26. Bc1 {[%emt 0:02:27]} Rg8 {[%emt 0:04:52]} 27. Bf4 {[%emt 0:01:05]} c4 {[%emt 0:03:31]} 28. h3 {[%emt 0:02:54]} a6 {[%emt 0:03:15]} 29. Qg4 {[%emt 0:02:23]} Qc6 {[%emt 0:08:49]} 30. Rfe1 {[%emt 0:05:18]} Qb7 {[%emt 0:15:45]} 31. Qg6 {[%emt 0:05:24]} Bc6 {[%emt 0:01:40]} 32. Qg3 {[%emt 0:06:44]} Bc5+ {[%emt 0:04:47]} 33. Kh2 {[%emt 0:00:22]} Qe7 {[%emt 0:00:34]} 34. Rxd8 {[%emt 0:06:18]} Rxd8 {[%emt 0:00:21]} 35. Rd1 {[%emt 0:00:12]} Rxd1 {[%emt 0:00:49]} 36. Bxd1 {[%emt 0:00:02]} cxb3 {[%emt 0:02:07]} 37. Qxb3 {[%emt 0:02:28]} Be4 {[%emt 0:01:07]} 38. g4 {[%emt 0:04:29]} Qb7 {[%emt 0:01:11]} 39. Kg3 {[%emt 0:01:53]} Bh1 {[%emt 0:00:35]} 40. Bf3 {[%emt 0:00:35]} Bxf3 {[%emt 0:00:22]} 41. Qxf3 {[%emt 0:00:02]} Qxf3+ {[%emt 0:00:26]} 42. Kxf3 {[%emt 0:00:02]} Kg8 {[%emt 0:00:28]} 43. Ke4 {[%emt 0:00:03]} Kf8 {[%emt 0:00:25]} 44. Kd5 {[%emt 0:00:04]} Be7 {[%emt 0:02:11]} 45. Bd6 {[%emt 0:01:09]} b4 {[%emt 0:00:36]} 46. Bxe7+ {[%emt 0:00:09]} Kxe7 {[%emt 0:00:05]} 47. Ke4 1-0

[Event "19th IPCA WCC 2019"]
[Site "Ruzomberok"]
[Date "2019.06.30"]
[Round "3.19"]
[White "Zicho, Anton"]
[Black "Pamarthi Audietya Aazadh"]
[Result "0-1"]
[ECO "B50"]
[WhiteElo "1662"]
[BlackElo "1346"]
[Annotator "NA"]
[PlyCount "102"]
[EventDate "2019.06.28"]
[EventType "swiss"]
[EventCountry "SVK"]
[SourceTitle "playchess.com"]
[Source "ChessBase"]
[SourceQuality "1"]
[TimeControl "5400+30"]

1. e4 {[%emt 0:00:00]} c5 {[%emt 0:00:00]} 2. Nf3 {[%emt 0:00:00]} d6 {[%emt 0:00:00]} 3. c3 {[%emt 0:00:43]} Nc6 {[%emt 0:00:10]} 4. d4 {[%emt 0:01:39]} cxd4 {[%emt 0:00:56]} 5. cxd4 {[%emt 0:00:34]} a6 {[%emt 0:02:03]} 6. Nc3 {[%emt 0:05:30]} Bg4 {[%emt 0:01:37]} 7. Be2 {[%emt 0:00:15]} Bxf3 {[%emt 0:00:17]} 8. Bxf3 {[%emt 0:00:28]} g6 {[%emt 0:00:12]} 9. O-O {[%emt 0:04:50]} Bg7 {[%emt 0:00:22]} 10. Be3 {[%emt 0:01:15]} Nf6 {[%emt 0:00:14]} 11. Rc1 {[%emt 0:02:33]} O-O {[%emt 0:00:15]} 12. a3 {[%emt 0:01:16]} Rc8 {[%emt 0:00:12]} 13. b4 {[%emt 0:01:11]} e6 {[%emt 0:05:22]} 14. Qd2 {[%emt 0:02:52]} d5 {[%emt 0:01:03]} 15. e5 {[%emt 0:00:22]} Nd7 {[%emt 0:00:22]} 16. Be2 {[%emt 0:03:09]} Nb6 {[%emt 0:01:57]} 17. Qa2 {[%emt 0:01:34]} Ne7 {[%emt 0:00:40]} 18. f4 {[%emt 0:07:02]} Nf5 {[%emt 0:00:30]} 19. Bf2 {[%emt 0:00:37]} Qd7 {[%emt 0:00:11]} 20. Rc2 {[%emt 0:05:24]} Nc4 {[%emt 0:00:09]} 21. Rfc1 {[%emt 0:01:19]} b5 {[%emt 0:00:05]} 22. g4 {[%emt 0:02:41]} Ne7 {[%emt 0:00:25]} 23. Nd1 {[%emt 0:05:43]} f6 {[%emt 0:00:05]} 24. Qb3 {[%emt 0:01:26]} fxe5 {[%emt 0:00:15]} 25. fxe5 {[%emt 0:02:35]} g5 {[%emt 0:00:28]} 26. Ne3 {[%emt 0:01:20]} Ng6 {[%emt 0:00:25]} 27. Nxc4 dxc4 28. Qg3 {[%emt 0:05:11]} Nf4 {[%emt 0:00:49]} 29. Bf1 {[%emt 0:00:48]} h6 {[%emt 0:00:22]} 30. Rc3 {[%emt 0:02:13]} Rf7 {[%emt 0:00:08]} 31. R1c2 {[%emt 0:05:17]} Rcf8 {[%emt 0:00:19]} 32. Rf3 Nd5 33. Rxf7 {[%emt 0:04:23]} Qxf7 {[%emt 0:00:31]} 34. Bg2 {[%emt 0:01:23]} Nf4 {[%emt 0:00:12]} 35. Be4 {[%emt 0:00:41]} Qd7 {[%emt 0:03:43]} 36. Rd2 {[%emt 0:01:49]} Bxe5 {[%emt 0:00:34]} 37. Qe3 {[%emt 0:00:47]} Bb8 {[%emt 0:00:44]} 38. Bg3 {[%emt 0:00:38]} Rd8 {[%emt 0:00:14]} 39. Qf3 {[%emt 0:01:05]} Be5 {[%emt 0:00:32]} 40. d5 {[%emt 0:00:34]} Qd6 {[%emt 0:00:59]} 41. Bf2 Nxd5 42. Bc5 {[%emt 0:02:30]} Qd7 {[%emt 0:01:07]} 43. Bb6 {[%emt 0:05:11]} Rf8 {[%emt 0:01:07]} 44. Qg2 {[%emt 0:00:43]} Bf4 {[%emt 0:00:14]} 45. Rd1 {[%emt 0:00:50]} Qc6 {[%emt 0:00:58]} 46. Bc5 {[%emt 0:00:15]} Rd8 {[%emt 0:00:14]} 47. Qf3 {[%emt 0:00:44]} Qd7 {[%emt 0:01:32]} 48. Bb6 {[%emt 0:02:01]} Rf8 {[%emt 0:01:19]} 49. h3 {[%emt 0:01:51]} Bh2+ {[%emt 0:00:14]} 50. Kxh2 Rxf3 51. Bxf3 Qd6+ {Rd2} 0-1